bitfinex-derivatives/quotes_ETHF0:USTF0_20251216
["timestamp","ask_amount","ask_price","bid_price","bid_amount"]
[1765871298231,0.00335893,2923.9,2923.8,2.34260519]
[1765871298732,2.35635893,2923.9,2923.8,0.00370519]
[1765871299929,2.35635893,2923.9,2923.8,1.21500519]
[1765871300229,2.35635893,2923.9,2923.8,2.34260519]
[1765871300429,0.00335893,2923.9,2923.8,4.77260519]
[1765871300936,0.00335893,2923.9,2923.8,2.34260519]
[1765871301130,1.14225893,2923.9,2923.8,2.34260519]
[1765871301331,0.00335893,2923.9,2923.8,2.34260519]
[1765871301932,2.35635893,2923.9,2923.8,2.34260519]
[1765871302132,0.00335893,2923.9,2923.8,2.34260519]
[1765871302734,1.1389,2923.1,2923.0,4.4191]
[1765871302935,0.6802,2923.0,2922.4,3.2078]
[1765871303134,3.0332,2923.0,2922.9,1.2113]
[1765871303338,3.0332,2923.0,2922.9,42.0113]
[1765871303829,3.0332,2923.0,2922.9,42.01393379]
[1765871305138,3.0332,2923.0,2922.9,2.34153379]
[1765871305439,1.8191,2923.0,2922.9,2.34153379]
[1765871305636,0.6802,2923.0,2922.9,2.34153379]
[1765871305939,5.5608,2923.3,2923.2,1.2113]
[1765871306140,3.2078,2923.3,2923.2,2.3389]
[1765871306335,3.2078,2923.3,2923.2,5.1389]
[1765871306735,0.00335893,2923.9,2923.8,1.2113]
[1765871307036,3.21115893,2923.9,2923.8,1.2113]
[1765871307537,4.35005893,2923.9,2923.8,1.2113]
[1765871307742,1.14225893,2923.9,2923.8,1.2113]
[1765871308633,0.00335893,2923.9,2923.8,1.2113]
[1765871309033,0.00335893,2923.9,2923.8,3.9413]
[1765871309739,0.00513584,2924.1,2923.8,43.53]
[1765871310440,0.00513584,2924.1,2923.8,43.70104]
[1765871310641,0.00513584,2924.1,2924.0,3.2078]
[1765871310843,0.0076829,2924.1,2924.0,5.5178]
[1765871311834,0.0076829,2924.1,2924.0,46.3178]
[1765871313443,0.6802,2924.5,2924.0,46.3178]
[1765871313643,0.6802,2924.5,2924.4,3.2078]
[1765871313845,0.6802,2924.5,2924.4,5.7478]
[1765871314349,0.68344483,2924.5,2924.4,5.7478]
[1765871315047,0.68344483,2924.5,2924.4,5.9978]
[1765871315244,0.68344483,2924.5,2924.4,22.0138]
[1765871315845,4.483e-05,2924.5,2924.4,24.50003861]
[1765871316151,0.6802,2925.5,2924.6,0.171]
[1765871316346,1.98,2925.5,2925.0,3.2078]
[1765871316652,1.2998,2925.2,2925.1,40.8]
[1765871316849,2.5713,2925.2,2925.1,43.57]
[1765871317050,2.57552461,2925.2,2925.1,43.57444207]
[1765871317455,2.57552461,2925.2,2925.1,40.80444207]
[1765871318146,1.30402461,2925.2,2925.1,40.80444207]
[1765871318341,2.57552461,2925.2,2925.1,0.00444207]
[1765871320047,0.00422461,2925.2,2925.1,2.39444207]
[1765871320352,0.00422461,2925.2,2925.1,2.77444207]
[1765871320549,2.57552461,2925.2,2925.1,0.00444207]
[1765871322352,0.00422461,2925.2,2925.1,2.68444207]
[1765871322742,0.00422461,2925.2,2925.1,4.99967068]
[1765871322946,0.00422461,2925.2,2925.1,2.68444207]
[1765871323547,2.57552461,2925.2,2925.1,2.68444207]
[1765871323951,0.00422461,2925.2,2925.1,2.68444207]
[1765871324654,0.00422461,2925.2,2925.1,43.48444207]
[1765871325043,2.57552461,2925.2,2925.1,43.48444207]
[1765871325242,1.30402461,2925.2,2925.1,43.48444207]
[1765871325449,2.57552461,2925.2,2925.1,43.58444207]
[1765871325852,1.30402461,2925.2,2925.1,43.58444207]
[1765871326553,2.57552461,2925.2,2925.1,43.58444207]
[1765871326749,2.57552461,2925.2,2925.1,43.37444207]
[1765871327145,0.00422461,2925.2,2925.1,43.37444207]
[1765871329752,2.57552461,2925.2,2925.1,40.80444207]
[1765871330252,2.57552461,2925.2,2925.1,0.00444207]
[1765871330955,1.2715,2925.1,2924.9,0.00513584]
[1765871331154,2.5713,2924.7,2924.6,3.18874868]
[1765871331757,2.5713,2924.7,2924.6,2.85652555]
[1765871332056,2.5713,2924.1,2924.0,17.2291]
[1765871332256,2.5713,2924.1,2924.0,1.48177388]
[1765871332848,2.5713,2924.1,2924.0,2.73407388]
[1765871333356,2.5713,2924.1,2924.0,1.48177388]
[1765871334157,2.5713,2924.1,2924.0,2.73407388]
[1765871336158,3.2078,2924.4,2924.0,5.15407388]
[1765871336358,5.7791,2924.4,2924.3,1.2181]
[1765871336554,5.7791,2924.4,2924.3,3.7881]
[1765871336754,4.5076,2924.4,2924.3,5.0404]
[1765871337362,5.7791,2924.4,2924.3,3.7881]
[1765871337558,5.7791,2924.4,2924.3,1.2181]
[1765871337862,5.7791,2924.4,2924.3,5.2804]
[1765871338257,5.7791,2924.4,2924.3,2.4704]
[1765871338963,5.7791,2924.4,2924.3,5.1004]
[1765871339360,4.5076,2924.4,2924.3,5.1004]
[1765871339759,5.7791,2924.4,2924.3,5.1004]
[1765871339959,5.7791,2924.4,2924.3,2.63]
[1765871340160,1.2998,2924.1,2924.0,2.47407388]
[1765871340463,5.7791,2924.4,2924.3,2.4704]
[1765871340656,5.7791,2924.4,2924.3,1.2181]
[1765871340855,2.5713,2924.1,2924.0,1.22177388]
[1765871341062,2.5713,2924.1,2924.0,1.23177388]
[1765871341562,3.2078,2924.4,2924.0,5.00407388]
[1765871341762,5.7791,2924.4,2924.3,2.4704]
[1765871342157,4.5076,2924.4,2924.3,4.8204]
[1765871345057,3.2078,2924.4,2924.3,4.8204]
[1765871345461,4.4516,2924.4,2924.3,4.8204]
[1765871345670,1.2438,2924.1,2924.0,2.66527388]
[1765871345862,1.2438,2924.1,2924.0,5.36527388]
[1765871347266,2.5607,2924.1,2924.0,2.68527388]
[1765871347465,2.5607,2924.1,2924.0,5.37527388]
[1765871348068,1.2438,2924.1,2924.0,5.37527388]
[1765871348468,5.7685,2924.4,2924.3,1.31]
[1765871348667,5.7685,2924.4,2924.3,4.02]
[1765871349065,5.7685,2924.4,2924.3,5.3716]
[1765871349066,4.4516,2924.4,2924.3,5.3716]
[1765871349263,3.2078,2924.4,2924.3,5.3716]
[1765871349569,1.2438,2924.4,2924.3,5.3716]
[1765871350165,2.5607,2924.4,2924.3,4.02]
[1765871350468,2.5607,2924.1,2924.0,1.31367388]
[1765871350664,2.5607,2924.1,2924.0,4.07367388]
[1765871350859,2.5607,2924.1,2924.0,5.42527388]
[1765871351367,1.2438,2924.1,2924.0,5.42527388]
[1765871351567,5.2315,2924.5,2924.4,2.6616]
[1765871351767,6.5484,2924.5,2924.4,2.6616]
[1765871351966,6.5484,2924.5,2924.0,0.00367388]
[1765871352167,1.2438,2924.1,2924.0,5.38527388]
[1765871352869,2.5607,2924.1,2924.0,3.83367388]
[1765871354970,2.5607,2924.1,2924.0,5.18527388]
[1765871356878,3.9877,2924.5,2924.0,5.18527388]
[1765871359477,1.2438,2924.1,2924.0,5.18527388]
[1765871362680,3.9877,2924.5,2924.0,5.18527388]
[1765871365178,6.5484,2924.5,2924.4,2.6616]
[1765871365783,6.5484,2924.5,2924.4,1.31]
[1765871365979,6.5484,2924.5,2924.0,0.00367388]
[1765871365980,1.2438,2924.1,2924.0,2.66527388]
[1765871366184,1.2438,2924.1,2924.0,5.36527388]
[1765871366592,5.2315,2924.5,2924.4,1.31]
[1765871366783,6.5484,2924.5,2924.4,1.31]
[1765871366988,6.5484,2924.5,2924.4,2.6616]
[1765871367184,3.2078,2924.9,2924.8,2.6616]
[1765871367380,4.4516,2924.9,2924.8,4.20544563]
[1765871367689,3.2078,2924.9,2924.8,43.4616]
[1765871367984,0.00422461,2925.2,2925.1,2.6616]
[1765871368185,2.5607,2924.9,2924.8,40.8]
[1765871368488,4.10454563,2924.9,2924.0,1.54751951]
[1765871368683,6.56,2925.0,2924.9,1.31]
[1765871368882,6.56,2925.0,2924.9,5.2016]
[1765871369082,6.56,2925.0,2924.9,2.72]
[1765871369283,6.56,2925.0,2924.9,4.03]
[1765871369987,6.56,2925.0,2924.9,5.3816]
[1765871370383,6.56,2925.0,2924.9,5.2816]
[1765871370781,6.56,2925.0,2924.9,2.62]
[1765871370986,6.56,2925.0,2924.5,40.8]
[1765871371186,6.56,2925.0,2924.9,1.31]
[1765871372485,2.3885,2924.6,2924.5,56.813]
[1765871372684,3.9993,2925.0,2924.2,3.2078]
[1765871372685,2.3885,2924.3,2924.2,5.5588]
[1765871372881,1.1677,2924.3,2924.2,8.1588]
[1765871373190,1.1677,2924.3,2924.2,48.8488]
[1765871373584,3.0702,2924.5,2924.4,2.351]
[1765871373784,3.0702,2924.5,2924.4,4.841]
[1765871375591,1.8494,2924.5,2924.4,4.841]
[1765871375890,3.0401,2924.5,2924.4,4.841]
[1765871376191,0.6817,2924.5,2924.4,4.841]
[1765871376791,1.8844,2924.5,2924.4,4.841]
[1765871378491,3.0751,2924.5,2924.4,4.841]
[1765871379601,3.0751,2924.5,2924.4,4.701]
[1765871380095,0.6817,2924.5,2924.4,4.701]
[1765871381598,4.4105,2924.7,2924.6,2.3755]
[1765871381897,4.4105,2924.7,2924.6,4.7255]
[1765871382292,3.2078,2924.7,2924.6,4.6655]
[1765871384203,6.3927,2925.0,2924.9,2.3755]
[1765871384399,6.3927,2925.0,2924.9,5.0355]
[1765871384602,5.202,2925.0,2924.9,5.0355]
[1765871384802,6.3927,2925.0,2924.9,5.0355]
[1765871385204,6.3927,2925.0,2924.3,17.55415284]
[1765871385404,6.3927,2925.0,2924.3,20.39415284]
[1765871385905,2.3934,2924.4,2924.3,1.1908]
[1765871386106,2.3934,2924.4,2924.3,3.9408]
[1765871386308,2.3934,2924.4,2924.3,5.1255]
[1765871386608,4.4105,2924.7,2924.6,2.3755]
[1765871386802,5.6012,2924.7,2924.6,5.1255]
[1765871387002,5.6012,2924.7,2924.6,3.9408]
[1765871387706,5.6012,2924.7,2924.6,5.1255]
[1765871388610,5.6012,2924.7,2924.6,3.9408]
[1765871388909,3.1136,2924.5,2924.4,2.3755]
[1765871389114,3.1136,2924.5,2924.4,4.7155]
[1765871389604,3.1136,2924.5,2924.4,2.34]
[1765871389810,3.1136,2924.5,2924.4,4.7155]
[1765871390606,4.4105,2924.7,2924.6,2.3755]
[1765871390804,3.2078,2925.0,2924.9,2.3755]
[1765871391000,3.2078,2925.0,2924.9,4.8055]
[1765871392005,2.88899302,2925.3,2925.2,2.3755]
[1765871392213,2.88899302,2925.3,2925.2,4.8055]
[1765871392615,2.88899302,2925.3,2925.2,45.6055]
[1765871392912,0.00513584,2925.4,2925.3,2.3755]
[1765871393212,0.00811483,2925.4,2925.3,8.0133]
[1765871397319,3.0736,2926.0,2925.9,2.3755]
[1765871397525,3.0736,2926.0,2925.9,4.7155]
[1765871398023,1.8829,2926.0,2925.9,4.7155]
[1765871398219,0.00364826,2926.0,2925.9,6.25865284]
[1765871398420,0.7202,2926.5,2926.4,2.3755]
[1765871398624,3.1136,2926.5,2926.4,2.3755]
[1765871398820,3.1136,2926.0,2925.9,3.2078]
[1765871399027,3.1136,2926.0,2925.7,0.00512653]
[1765871399028,2.3934,2925.8,2925.7,1.19592653]
[1765871399226,1.9229,2926.0,2925.9,2.3755]
[1765871399520,3.11632054,2926.0,2925.9,4.02464216]
[1765871399827,3.11632054,2926.0,2925.9,2.79384216]
[1765871400325,3.11632054,2926.0,2925.9,2.32384216]
[1765871400718,3.11632054,2926.0,2925.9,0.00384216]
[1765871402921,2.1107,2925.8,2925.7,0.00512653]
[1765871403121,5.3185,2925.8,2925.7,0.00512653]
[1765871403318,2.1107,2925.3,2925.2,40.8]
[1765871403628,0.64,2925.5,2924.8,2.1617]
[1765871403629,1.081,2924.9,2924.8,2.1617]
[1765871403822,2.1107,2924.9,2924.8,2.1617]
[1765871404023,2.1107,2924.9,2924.8,44.58456342]
[1765871404223,2.1107,2924.9,2924.8,41.97456342]
[1765871404728,2.1107,2924.9,2924.8,0.08256342]
[1765871404925,2.1107,2924.9,2924.8,0.00256342]
[1765871408628,2.1107,2924.9,2924.8,1.09456342]
[1765871408827,2.1107,2924.9,2924.8,0.00256342]
[1765871415529,2.1107,2924.7,2923.8,3.2078]
[1765871415831,3.8478,2924.5,2923.8,5.5478]
[1765871416032,2.7507,2924.5,2924.4,1.092]
[1765871416333,5.9585,2924.5,2924.4,1.092]
[1765871416530,2.7507,2924.5,2924.4,2.1644334]
[1765871416730,0.64,2924.5,2924.4,2.1644334]
[1765871417034,0.00512653,2924.7,2924.6,2.1617]
[1765871417426,0.00512653,2924.7,2924.6,4.6717]
[1765871417934,0.00512653,2924.7,2924.6,2.1617]
[1765871418137,0.00512653,2924.7,2924.6,5.0117]
[1765871418338,0.00512653,2924.7,2924.6,2.1617]
[1765871418636,0.00512653,2924.7,2924.6,4.4417]
[1765871419031,0.00512653,2924.7,2924.6,4.7817]
[1765871419938,0.00512653,2924.7,2924.6,45.5817]
[1765871420128,3.2078,2925.2,2925.1,2.1617]
[1765871420328,3.2078,2925.2,2925.1,4.7717]
[1765871420636,3.2078,2925.7,2925.6,2.1617]
[1765871420837,3.2078,2925.7,2925.6,4.9917]
[1765871421032,3.2078,2925.7,2925.6,2.1617]
[1765871421239,4.2888,2925.7,2925.6,2.1617]
[1765871421432,2.11582653,2925.9,2925.8,2.1617]
[1765871422039,2.11582653,2925.9,2925.8,4.8317]
[1765871422233,2.11582653,2925.9,2925.8,2.1617]
[1765871422433,2.11582653,2925.9,2925.8,4.8417]
[1765871422840,2.11582653,2925.9,2925.3,3.2078]
[1765871423135,2.11582653,2925.9,2925.8,2.1617]
[1765871424136,0.00512653,2925.9,2925.8,2.1617]
[1765871424338,1.08612653,2925.9,2925.8,2.1617]
[1765871424839,2.11582653,2925.9,2925.8,2.1617]
[1765871425340,1.08612653,2925.9,2925.8,2.1617]
[1765871425542,1.08612653,2925.9,2925.8,4.7317]
[1765871426137,0.00512653,2925.9,2925.8,2.1617]
[1765871426339,0.00512653,2925.9,2925.8,4.5517]
[1765871428441,2.11582653,2925.9,2925.8,4.4852]
[1765871428637,1.08612653,2925.9,2925.8,4.4852]
[1765871428841,2.1107,2925.7,2925.6,5.303]
[1765871429143,2.11582653,2925.9,2925.8,2.0744]
[1765871429836,2.11582653,2925.9,2925.8,1.0372]
[1765871430035,2.1107,2925.7,2925.6,2.064]
[1765871430235,1.081,2925.3,2925.2,40.8]
[1765871430443,2.7507,2925.5,2925.4,2.0536]
[1765871430746,0.64,2925.5,2925.4,4.4836]
[1765871430937,1.08612653,2925.9,2925.8,2.0536]
[1765871431137,0.00512653,2925.9,2925.8,4.4436]
[1765871431343,2.11582653,2925.9,2925.8,2.0536]
[1765871431544,2.11582653,2925.9,2925.8,1.0268]
[1765871432139,2.11582653,2925.9,2925.8,2.0329]
[1765871432540,2.11582653,2925.9,2925.8,1.0268]
[1765871432736,2.11582653,2925.9,2925.4,16.002]
[1765871432737,0.5569,2925.5,2925.4,17.9524]
[1765871432937,0.5569,2925.5,2925.4,20.6624]
[1765871433139,0.00512653,2925.9,2925.4,20.6624]
[1765871433140,0.00512653,2925.9,2925.8,1.9504]
[1765871433342,0.00512653,2925.9,2925.8,4.5404]
[1765871433547,0.00512653,2925.9,2925.8,1.9504]
[1765871433846,1.94442653,2925.9,2925.8,1.9504]
[1765871434646,1.01732653,2925.9,2925.8,1.9504]
[1765871435850,1.01732653,2925.9,2925.8,4.3404]
[1765871436051,1.0122,2925.6,2925.5,17.9124]
[1765871436251,1.9393,2925.6,2925.5,20.2124]
[1765871436442,1.9393,2925.6,2925.5,19.2659]
[1765871436645,1.9393,2925.6,2925.5,1.9114]
[1765871437247,1.9393,2925.6,2925.5,0.9649]
[1765871438651,1.9393,2925.3,2925.2,56.801]
[1765871438955,1.0122,2925.3,2925.2,59.331]
[1765871439454,2.4962,2925.5,2925.4,1.8692]
[1765871439752,2.4962,2925.5,2925.4,0.9846]
[1765871440348,2.4962,2925.5,2925.4,1.9192]
[1765871440547,1.01732653,2925.9,2925.8,0.9246]
[1765871440845,1.01732653,2925.9,2925.4,2.6]
[1765871440846,2.4962,2925.5,2925.4,1.8492]
[1765871441050,2.4962,2925.5,2925.4,4.5592]
[1765871441355,1.9393,2924.9,2924.4,3.2105334]
[1765871441553,1.5691,2924.5,2924.4,23.4297334]
[1765871441748,1.5691,2924.5,2924.4,7.4297334]
[1765871443159,2.4962,2924.5,2924.4,7.4297334]
[1765871443458,0.5569,2924.5,2924.4,7.4297334]
[1765871444452,1.5691,2924.5,2924.4,5.3397334]
[1765871444754,2.4962,2924.5,2924.4,3.5105334]
[1765871445159,2.4962,2924.5,2924.4,4.4460334]
[1765871445453,2.4962,2924.5,2924.4,5.3715334]
[1765871446059,2.4962,2924.5,2924.4,5.0715334]
[1765871446357,2.4962,2924.5,2924.4,5.2515334]
[1765871446854,1.5691,2925.0,2924.9,1.831]
[1765871447059,2.4962,2925.0,2924.9,1.831]
[1765871447752,2.4962,2925.0,2924.9,0.9155]
[1765871448456,2.4962,2925.0,2924.9,1.821]
[1765871449554,2.4962,2925.0,2924.9,0.9155]
[1765871449751,2.4962,2925.0,2924.9,1.8011]
[1765871449955,2.4962,2925.0,2924.9,0.9155]
[1765871450357,2.4962,2925.0,2924.9,1.8011]
[1765871450655,1.5691,2925.0,2924.9,1.8011]
[1765871450863,0.5569,2925.0,2924.9,1.8011]
[1765871451158,2.4962,2925.0,2924.4,3.3815434]
[1765871451349,4.03944075,2925.0,2924.4,5.8915434]
[1765871451554,4.03944075,2925.0,2924.9,0.8659]
[1765871451755,4.03944075,2925.0,2924.4,3.3815434]
[1765871452058,4.03944075,2925.0,2924.4,21.8145434]
[1765871453157,4.03944075,2925.0,2924.9,0.8561]
[1765871454465,4.03944075,2925.0,2924.9,1.7024]
[1765871454763,2.4962,2925.0,2924.9,1.7024]
[1765871456459,1.5691,2924.5,2924.4,5.0159434]
[1765871456665,0.5569,2924.5,2924.4,23.7189434]
[1765871456964,3.48254075,2924.9,2924.8,0.8172]
[1765871457356,3.48254075,2924.9,2924.8,1.6247]
[1765871457660,1.0122,2924.9,2924.8,4.0047]
[1765871458559,1.5691,2925.0,2924.9,1.6054]
[1765871458766,1.5691,2925.0,2924.9,3.9854]
[1765871459562,5.1471,2925.2,2924.9,2.37]
[1765871459866,6.69034075,2925.2,2924.9,2.37]
[1765871460061,2.4962,2925.0,2924.9,40.8]
[1765871460263,4.03944075,2925.0,2924.9,40.8]
[1765871460567,0.5569,2925.0,2924.9,43.22]
[1765871461160,2.4962,2925.0,2924.9,0.7693]
[1765871461365,1.0122,2924.6,2924.5,4.9174]
[1765871461565,2.10014075,2925.0,2924.5,48.5274]
[1765871461867,2.10014075,2925.0,2924.5,61.2014]
[1765871462566,4.00024075,2925.0,2924.5,46.9888]
[1765871462767,3.34504075,2924.6,2924.5,0.7601]
[1765871463061,2.3313,2924.5,2924.4,0.0027334]
[1765871463266,2.3313,2924.5,2924.4,0.9634334]
[1765871463465,3.87454075,2924.5,2924.4,0.0027334]
[1765871463762,3.2078,2924.9,2924.4,4.2941334]
[1765871463967,0.9139,2924.9,2924.8,1.5014]
[1765871464163,0.9139,2924.9,2924.8,3.9714]
[1765871464562,0.9139,2924.9,2924.8,1.5014]
[1765871464768,0.9139,2924.9,2924.8,4.0314]
[1765871465162,0.5569,2925.0,2924.9,1.4636]
[1765871465470,4.1217,2925.2,2925.1,1.4636]
[1765871465760,4.1217,2925.2,2925.1,3.9436]
[1765871466160,3.2078,2925.2,2925.1,3.9436]
[1765871466368,5.5665,2925.5,2925.4,1.445]
[1765871466965,5.5665,2925.5,2925.4,0.7225]
[1765871467161,1.8018,2925.1,2925.0,17.4282]
[1765871467367,1.8018,2924.6,2924.4,3.2105334]
[1765871467568,2.3313,2924.5,2924.4,3.9236334]
[1765871467871,2.3313,2924.5,2924.4,6.9667334]
[1765871468171,2.3313,2924.5,2924.4,47.7667334]
[1765871469070,2.3313,2924.5,2924.4,0.7858334]
[1765871470369,2.3313,2924.5,2924.4,0.0727334]
[1765871470563,2.3313,2924.5,2924.4,0.7580334]
[1765871471268,2.3313,2924.5,2924.4,0.0727334]
[1765871473167,2.3313,2924.5,2924.4,0.7396334]
[1765871473563,2.3313,2924.5,2924.4,1.3974334]
[1765871474065,2.3313,2924.5,2924.4,0.0727334]
[1765871474464,2.3313,2924.5,2924.2,0.00512653]
[1765871474465,1.8018,2924.3,2924.2,0.00512653]
[1765871474660,1.8018,2924.3,2924.2,0.77512653]
[1765871475064,1.8018,2923.9,2923.8,3.2078]
[1765871475368,1.8018,2923.6,2923.5,3.2078]
[1765871475572,1.80434957,2923.6,2923.5,4.09077724]
[1765871476571,1.80434957,2923.6,2923.5,5.03037724]
[1765871478370,1.80434957,2923.6,2923.5,0.88297724]
[1765871479371,1.80434957,2923.6,2923.5,1.82257724]
[1765871479771,1.80434957,2923.6,2923.5,0.88297724]
[1765871480876,1.80434957,2923.6,2923.5,1.82257724]
[1765871481173,1.80434957,2923.6,2923.5,2.74027724]
[1765871481473,0.00254957,2923.6,2923.5,2.74027724]
[1765871482576,0.91644957,2923.6,2923.5,2.74027724]
[1765871482774,1.80434957,2923.6,2923.5,2.74027724]
[1765871483075,1.80434957,2923.6,2923.5,1.82257724]
[1765871483273,1.80434957,2923.6,2923.5,2.74027724]
[1765871483574,1.80434957,2923.6,2923.5,0.88297724]
[1765871485270,1.8018,2923.4,2923.3,0.00358726]
[1765871485572,1.8018,2922.8,2922.7,17.8623]
[1765871485768,0.9139,2922.8,2922.7,20.2423]
[1765871486070,2.3313,2923.0,2922.9,1.8573]
[1765871486271,2.3313,2923.0,2922.9,3.16044215]
[1765871486773,4.1217,2923.4,2923.3,1.8573]
[1765871486973,2.3313,2923.0,2922.9,0.00314215]
[1765871487166,2.3313,2923.0,2922.9,1.34314215]
[1765871487365,4.64692268,2923.0,2922.9,0.51314215]
[1765871488079,7.85472268,2923.0,2922.9,0.00314215]
[1765871488472,7.85472268,2923.0,2922.9,4.215e-05]
[1765871491068,5.5391,2923.0,2922.9,0.93964215]
[1765871491273,4.6512,2923.0,2922.9,1.85734215]
[1765871491479,5.5391,2923.0,2922.9,1.85734215]
[1765871492475,3.7373,2923.0,2922.9,4.215e-05]
[1765871492677,4.6698,2923.0,2922.9,1.78664215]
[1765871492876,5.606,2923.0,2922.9,1.78664215]
[1765871493376,3.2078,2923.0,2922.9,1.78664215]
[1765871493577,3.2078,2923.3,2923.0,0.3573]
[1765871493771,4.14284957,2923.6,2923.5,1.7866]
[1765871493984,3.21034957,2923.6,2923.5,1.7866]
[1765871494482,3.21034957,2923.6,2923.5,4.4166]
[1765871494880,0.00254957,2923.6,2923.5,4.4166]
[1765871495077,0.00254957,2923.6,2923.5,4.7849]
[1765871495382,0.00512653,2923.8,2923.7,1.7866]
[1765871495685,0.00512653,2923.8,2923.7,45.2366]
[1765871495884,0.00512653,2923.8,2923.7,61.2436]
[1765871496284,1.87702888,2923.8,2923.7,60.3308]
[1765871496477,1.87702888,2923.8,2923.7,41.6738]
[1765871496684,1.87702888,2923.8,2923.7,44.2638]
[1765871496884,1.87702888,2923.8,2923.7,41.6738]
[1765871497282,1.87702888,2923.8,2923.7,44.1738]
[1765871497587,0.00832888,2923.8,2923.7,44.1738]
[1765871498386,0.94082888,2923.8,2923.7,44.1738]
[1765871498786,0.00832888,2923.8,2923.7,44.1738]
[1765871498982,0.94082888,2923.8,2923.7,41.6738]
[1765871499488,0.94082888,2923.8,2923.7,44.4038]
[1765871499987,0.94082888,2923.8,2923.7,41.6738]
[1765871500585,0.94082888,2923.8,2923.7,44.0838]
[1765871500886,0.00832888,2923.8,2923.7,44.0838]
[1765871503077,0.00832888,2923.8,2923.7,60.0878]
[1765871505290,0.00832888,2923.8,2923.7,60.25885]
[1765871509490,0.5295,2924.5,2924.4,1.7866]
[1765871509690,5.0765,2924.8,2924.2,16.002]
[1765871509886,5.0765,2924.8,2924.2,18.602]
[1765871510590,5.08552834,2924.8,2924.2,18.60712653]
[1765871511690,5.08552834,2924.8,2924.7,0.8738]
[1765871511894,5.08552834,2924.8,2924.2,16.00712653]
[1765871512089,5.08552834,2924.8,2924.2,18.59712653]
[1765871512291,0.00902834,2924.8,2924.7,1.7866]
[1765871513000,1.87772834,2924.8,2924.7,0.8738]
[1765871513295,2.3895,2924.5,2924.4,17.7876]
[1765871513494,2.3895,2924.5,2924.4,16.8748]
[1765871513693,2.3895,2924.5,2924.4,0.8738]
[1765871513895,1.8687,2924.4,2924.3,4.0816]
[1765871514599,1.8687,2924.4,2924.3,3.2078]
[1765871518303,1.8687,2924.3,2924.2,0.87892653]
[1765871518597,1.8687,2924.3,2924.2,3.21292653]
[1765871518795,5.0765,2924.3,2924.2,0.00512653]
[1765871519399,5.0765,2924.3,2923.6,3.2078]
[1765871519400,1.8687,2923.7,2923.6,3.2078]
[1765871519596,5.0765,2923.7,2923.6,0.29]
[1765871521502,2.3895,2923.5,2923.4,0.87892653]
[1765871521698,2.3895,2923.5,2923.4,0.00512653]
[1765871522003,2.3895,2923.5,2923.4,0.87892653]
[1765871522403,2.3895,2923.5,2923.4,1.79172653]
[1765871523108,2.3895,2923.5,2923.4,0.87892653]
[1765871523307,2.3895,2923.5,2923.4,0.00512653]
[1765871525609,2.3895,2923.5,2923.4,1.62762653]
[1765871526008,3.7286,2924.0,2923.4,1.62762653]
[1765871526508,0.8249,2923.5,2923.4,4.23762653]
[1765871526708,3.7286,2924.0,2923.4,4.23762653]
[1765871526910,5.3656,2924.0,2923.9,1.6225]
[1765871527103,1.3457,2924.0,2923.9,1.6225]
[1765871527705,4.8448,2924.3,2924.2,0.8187]
[1765871527905,4.8448,2924.3,2924.2,1.6225]
[1765871528411,3.2078,2924.3,2924.2,1.6225]
[1765871528607,4.8448,2924.3,2924.2,0.8187]
[1765871528812,4.8448,2924.3,2924.2,1.6225]
[1765871529011,4.0327,2924.3,2924.2,1.6225]
[1765871530307,1.3457,2924.5,2924.4,1.6225]
[1765871530711,0.5208,2924.5,2924.4,1.6225]
[1765871530913,4.0327,2924.6,2924.5,1.6225]
[1765871531110,3.2078,2924.6,2924.5,4.2325]
[1765871532513,4.8448,2924.6,2924.5,4.2325]
[1765871532711,4.0327,2924.6,2924.5,4.2325]
[1765871534013,3.2078,2924.6,2924.5,4.2325]
[1765871535610,1.64602834,2924.8,2924.7,1.6225]
[1765871536214,1.64602834,2924.8,2924.2,19.2038]
[1765871536416,1.64602834,2924.8,2924.2,21.6138]
[1765871537112,1.64602834,2924.8,2924.7,0.8187]
[1765871539010,0.00902834,2924.8,2924.7,4.2425]
[1765871539914,0.83392834,2924.8,2924.7,3.4387]
[1765871540112,1.64602834,2924.8,2924.7,4.2425]
[1765871540318,0.00902834,2924.8,2924.7,4.2425]
[1765871540712,1.64602834,2924.8,2924.7,3.4387]
[1765871541214,1.637,2924.6,2924.5,3.2078]
[1765871541620,1.637,2924.3,2924.2,4.0265]
[1765871541920,1.637,2924.3,2924.2,6.5665]
[1765871542117,1.637,2924.3,2924.2,7.3703]
[1765871542308,2.1496,2924.5,2924.4,1.6225]
[1765871542514,2.1496,2924.5,2924.4,4.0725]
[1765871542714,1.3375,2924.5,2924.4,1.6225]
[1765871542915,0.8249,2924.3,2924.2,3.2078]
[1765871543214,0.8249,2924.3,2924.2,5.8478]
[1765871543415,0.8249,2924.3,2924.2,7.4703]
[1765871543609,1.637,2924.3,2924.2,7.4703]
[1765871544618,1.637,2924.3,2924.2,4.2625]
[1765871545216,0.8249,2924.3,2924.2,4.2625]
[1765871545620,2.1496,2924.5,2924.4,1.6225]
[1765871545815,1.64602834,2924.8,2924.7,1.6225]
[1765871546016,0.00902834,2924.8,2924.7,4.2425]
[1765871546617,2.1496,2925.5,2925.4,1.6225]
[1765871546823,1.3375,2925.5,2925.4,4.2225]
[1765871547012,4.0327,2925.8,2925.7,1.6225]
[1765871547217,4.0327,2925.8,2925.7,3.9325]
[1765871547617,4.03597754,2925.8,2925.7,3.9365907]
[1765871547823,0.00327754,2925.8,2925.7,3.9365907]
[1765871548218,0.00327754,2925.8,2925.7,7.1443907]
[1765871548715,1.64027754,2925.8,2925.7,6.3405907]
[1765871549019,1.64027754,2925.8,2925.7,0.0040907]
[1765871549419,1.637,2925.6,2925.5,0.00512653]
[1765871549820,1.637,2925.6,2925.5,2.33512653]
[1765871550014,0.8249,2925.6,2925.5,1.62762653]
[1765871550321,0.8249,2925.6,2925.5,7.54933218]